bitfinex/quotes_SOLUSD_20241016
["timestamp","ask_amount","ask_price","bid_price","bid_amount"]
[1729090979126,16.1161,155.13,155.05,0.12549]
[1729090979325,6.4467,155.12,155.07,0.12549]
[1729090979533,16.1128,155.16,155.07,6.57409]
[1729090979735,16.1128,155.16,155.07,0.12549]
[1729090979946,6.4477,155.1,155.07,0.12549]
[1729090980244,6.4471,155.11,155.07,0.12549]
[1729090980446,16.1128,155.16,155.07,0.12549]
[1729090980759,16.1092,155.2,155.12,23.902374]
[1729090981064,6.4448,155.17,155.13,6.4461]
[1729090981251,6.4448,155.17,155.14,0.12549]
[1729090981750,38.7774,155.23,155.14,6.57099]
[1729090981751,6.4444,155.18,155.14,6.57099]
[1729090982058,6.4449,155.17,155.14,0.12549]
[1729090982241,6.4442,155.18,155.14,0.12549]
[1729090982554,16.1068,155.22,155.14,0.12549]
[1729090982756,6.4446,155.17,155.14,0.12549]
[1729090984045,6.4453,155.15,155.11,42.5009]
[1729090984243,16.1089,155.2,155.12,23.776884]
[1729090984548,6.445,155.16,155.13,0.12549]
[1729090985461,16.1089,155.2,155.09,16.119]
[1729090985462,6.4459,155.14,155.1,20.0]
[1729090985640,6.4455,155.15,155.11,23.776884]
[1729090986156,6.4455,155.15,155.12,0.12549]
[1729090990962,16.1089,155.2,155.12,26.57179]
[1729090991260,38.7755,155.23,155.12,26.57179]
[1729090991261,6.4445,155.18,155.15,0.12549]
[1729090992042,6.70925161,155.24,155.14,30.222584]
[1729090992043,6.4424,155.22,155.18,6.4439]
[1729090992245,15.231,155.3,155.19,16.1088]
[1729090992451,6.4409,155.26,155.21,6.56809]
[1729090992662,6.4413,155.25,155.21,6.56809]
[1729090993037,6.4421,155.23,155.21,0.12549]
[1729090993640,6.4417,155.24,155.21,0.12549]
[1729090994172,16.1015,155.27,155.19,0.12549]
[1729090994467,6.4425,155.22,155.19,0.12549]
[1729090996060,6.4431,155.21,155.19,0.12549]
[1729090996951,6.4433,155.2,155.17,6.3348]
[1729090997152,6.4433,155.2,155.17,20.0]
[1729090997369,6.4433,155.2,155.18,0.12549]
[1729090997544,16.1038,155.25,155.18,0.12549]
[1729090997744,16.1057,155.23,155.13,28.9361]
[1729090998049,6.4442,155.18,155.13,28.9361]
[1729090998248,16.1057,155.23,155.13,28.9361]
[1729090998249,6.4446,155.17,155.14,0.12549]
[1729090998757,16.1075,155.21,155.12,6.4465]
[1729090998956,6.4446,155.17,155.12,6.4465]
[1729090999157,16.1075,155.21,155.12,6.4465]
[1729090999361,6.4446,155.17,155.12,6.4465]
[1729090999551,6.4446,155.17,155.13,0.12549]
[1729090999866,6.4444,155.18,155.15,0.12549]
[1729091002667,6.4444,155.18,155.16,0.12549]
[1729091002875,16.6274,155.22,155.16,0.12549]
[1729091003047,6.4445,155.17,155.16,0.12549]
[1729091003242,6.4445,155.17,155.15,23.776884]
[1729091003243,6.4452,155.16,155.13,20.0]
[1729091003471,16.1065,155.22,155.08,48.2232]
[1729091003472,16.1107,155.18,155.09,12.6703]
[1729091003855,16.1107,155.18,155.1,0.12549]
[1729091004053,16.1107,155.18,155.09,12.6703]
[1729091004263,6.4468,155.12,155.08,38.3501]
[1729091004475,6.4468,155.12,155.08,16.1197]
[1729091004848,6.4468,155.12,155.09,0.12549]
[1729091005359,6.4468,155.12,155.08,16.1197]
[1729091005762,6.4468,155.12,155.1,0.12549]
[1729091006978,6.447,155.11,155.08,16.1197]
[1729091007590,6.447,155.11,155.09,0.12549]
[1729091007777,16.1128,155.16,155.09,0.12549]
[1729091007778,6.4474,155.1,155.09,0.12549]
[1729091008373,6.4486,155.08,155.03,6.4499]
[1729091008580,6.4488,155.07,155.03,6.4499]
[1729091008779,6.3677,155.15,155.01,6.5015]
[1729091008780,6.45,155.04,155.01,6.5015]
[1729091008953,15.5729,155.11,154.99,16.1297]
[1729091008954,6.4507,155.03,154.99,16.1297]
[1729091009180,16.1211,155.08,154.93,6.5015]
[1729091009181,0.2,155.08,154.93,6.5015]
[1729091009359,0.2,155.08,154.94,6.454]
[1729091009360,6.4526,154.98,154.94,6.454]
[1729091009579,6.4522,154.99,154.95,6.4536]
[1729091009761,6.4499,155.05,154.99,0.12549]
[1729091009966,6.4499,155.05,154.99,6.57729]
[1729091010163,6.4501,155.04,154.99,6.57729]
[1729091011270,38.6052,155.1,154.98,0.12549]
[1729091011473,22.4866,155.1,155.01,0.12549]
[1729091011846,6.4499,155.05,155.01,0.12549]
[1729091012051,22.4866,155.1,155.01,0.12549]
[1729091012052,16.1215,155.08,155.01,0.12549]
[1729091012257,16.1215,155.08,154.99,23.776884]
[1729091012462,16.1215,155.08,155.0,0.12549]
[1729091012662,16.1215,155.08,154.98,20.0]
[1729091012663,38.8056,155.1,154.93,6.5015]
[1729091012854,6.4522,154.99,154.94,6.4539]
[1729091013175,6.4522,154.99,154.95,0.12549]
[1729091013374,6.4525,154.98,154.95,0.12549]
[1729091014069,6.4525,154.98,154.94,23.902374]
[1729091014272,6.4525,154.98,154.93,29.0915]
[1729091014456,16.1287,155.01,154.9,16.139]
[1729091014778,6.4537,154.95,154.91,0.12549]
[1729091015084,16.1311,154.98,154.87,31.1638]
[1729091015268,6.4549,154.92,154.88,6.4562]
[1729091015463,6.4559,154.9,154.85,6.0519]
[1729091015765,6.4559,154.9,154.85,6.4577]
[1729091016176,0.1,154.97,154.84,16.1455]
[1729091016480,0.1,154.97,154.81,0.6396282]
[1729091016481,6.4579,154.85,154.81,0.6396282]
[1729091016650,16.1393,154.91,154.82,0.12549]
[1729091016855,6.4557,154.9,154.86,0.12549]
[1729091017681,6.4557,154.9,154.85,6.4575]
[1729091018059,6.4557,154.9,154.86,0.12549]
[1729091019186,6.4549,154.92,154.88,0.12549]
[1729091019885,6.4561,154.9,154.87,0.12549]
[1729091020055,6.4554,154.91,154.87,0.12549]
[1729091020414,6.4558,154.9,154.85,16.1436]
[1729091020884,6.4558,154.9,154.86,0.12549]
[1729091021073,6.4563,154.89,154.86,0.12549]
[1729091022686,16.1355,154.94,154.84,20.0]
[1729091022873,6.4571,154.87,154.83,20.0]
[1729091023487,6.4566,154.88,154.84,0.12549]
[1729091023779,6.4576,154.86,154.82,16.1476]
[1729091024077,6.4576,154.86,154.81,0.6396282]
[1729091024473,6.4569,154.88,154.81,16.7874282]
[1729091024679,22.2922,154.92,154.81,16.7874282]
[1729091024680,6.4562,154.89,154.85,0.12549]
[1729091025167,6.4556,154.91,154.86,0.12549]
[1729091025399,6.455,154.92,154.86,0.12549]
[1729091025567,6.455,154.92,154.88,0.12549]
[1729091025889,38.3434,154.96,154.88,0.12549]
[1729091025890,6.4546,154.93,154.9,0.12549]
[1729091026061,6.454,154.95,154.9,0.12549]
[1729091026381,6.454,154.95,154.9,6.58119]
[1729091026585,6.4541,154.94,154.89,6.58159]
[1729091027977,6.4533,154.96,154.91,6.58059]
[1729091028282,6.4527,154.98,154.94,0.12549]
[1729091028588,6.4529,154.97,154.94,0.12549]
[1729091028765,6.4529,154.97,154.93,0.12549]
[1729091028968,22.5369,155.0,154.93,0.12549]
[1729091029159,6.4533,154.96,154.93,0.12549]
[1729091029588,22.5369,155.0,154.93,0.12549]
[1729091029888,22.5369,155.0,154.93,6.57959]
[1729091030183,6.4536,154.96,154.93,0.12549]
[1729091031277,6.69588041,155.02,154.93,0.12549]
[1729091031500,6.69588041,155.02,154.92,32.2736]
[1729091031688,6.2491,155.04,154.98,0.12549]
[1729091032007,15.8814,155.05,154.98,6.57759]
[1729091032008,6.4506,155.03,154.98,6.57759]
[1729091032297,6.45,155.04,155.0,0.12549]
[1729091033186,6.4507,155.03,154.99,20.12549]
[1729091037703,6.4504,155.03,154.99,26.57739]
[1729091038595,6.4499,155.04,155.01,0.12549]
[1729091039511,6.4494,155.06,155.0,0.12549]
[1729091039698,6.4494,155.06,155.02,0.12549]
[1729091040008,15.8814,155.1,155.02,16.25189]
[1729091040179,15.8814,155.1,155.05,0.12549]
[1729091040180,6.4481,155.09,155.05,0.12549]
[1729091040383,15.8814,155.1,155.05,0.12549]
[1729091041103,6.4483,155.08,155.05,0.12549]
[1729091041416,6.4483,155.08,155.04,0.12549]
[1729091041780,15.8814,155.1,155.04,0.12549]
[1729091042304,6.4483,155.08,155.04,0.12549]
[1729091042510,6.4479,155.09,155.04,6.57519]
[1729091043296,15.8814,155.1,155.05,6.4491]
[1729091043297,6.4475,155.1,155.05,6.4491]
[1729091043512,6.4475,155.1,155.06,0.12549]
[1729091043820,6.4483,155.08,155.06,0.12549]
[1729091043991,6.4483,155.08,155.04,16.1243]
[1729091044390,6.4483,155.08,155.05,0.12549]
[1729091045612,6.4487,155.07,155.04,0.12549]
[1729091045810,6.4491,155.06,155.04,0.12549]
[1729091045982,6.4488,155.07,155.04,0.12549]
[1729091046189,6.4488,155.07,155.03,0.12549]
[1729091047187,23.776884,155.1,154.96,32.266]
[1729091047394,6.4508,155.02,154.98,16.1307]
[1729091048108,16.1222,155.07,154.96,6.4529]
[1729091048109,6.4512,155.01,154.96,6.4529]
[1729091048404,6.4508,155.02,154.97,6.4527]
[1729091049100,6.4508,155.02,154.98,0.12549]
[1729091049407,15.1076,155.06,154.95,22.5144]
[1729091049408,6.4521,154.99,154.95,16.1337]
[1729091049797,6.4521,154.99,154.96,0.12549]
[1729091049995,6.4516,155.0,154.96,0.12549]
[1729091050806,23.776884,155.03,154.91,21.5467]
[1729091051000,32.2543,155.02,154.89,13.0892922]
[1729091051201,16.1309,154.99,154.89,13.0892922]
[1729091051394,16.1309,154.99,154.9,0.12549]
[1729091051583,6.4537,154.95,154.92,0.12549]
[1729091051784,6.4545,154.93,154.87,29.1132]
[1729091051997,6.455,154.92,154.88,0.12549]
[1729091052698,6.455,154.92,154.88,20.12549]
[1729091053025,6.455,154.92,154.87,29.1132]
[1729091053186,6.455,154.92,154.88,0.12549]
[1729091053388,6.4543,154.94,154.9,0.12549]
[1729091053894,16.1085,154.98,154.9,23.776884]
[1729091054098,6.4529,154.97,154.93,0.12549]
[1729091054685,16.1293,155.0,154.93,0.12549]
[1729091054896,55.5911386,155.02,154.92,0.12549]
[1729091054897,55.6911386,155.02,154.92,0.12549]
[1729091055119,6.4545,154.93,154.92,0.12549]
[1729091055428,16.1292,155.0,154.89,0.12549]
[1729091055922,6.4545,154.93,154.89,0.12549]
[1729091056090,16.1319,154.98,154.89,0.12549]
[1729091056291,6.4549,154.92,154.89,0.12549]
[1729091056726,6.4556,154.91,154.88,20.0]
[1729091056904,6.4561,154.89,154.84,22.6026]
[1729091057414,6.4567,154.88,154.84,22.6026]
[1729091057604,6.4567,154.88,154.85,0.12549]
[1729091057800,6.457,154.87,154.85,0.12549]
[1729091058010,16.137,154.93,154.85,0.12549]
[1729091058221,16.137,154.93,154.82,6.4587]
[1729091058222,6.457,154.87,154.82,6.4587]
[1729091058399,6.457,154.87,154.83,0.12549]
[1729091058592,6.4574,154.86,154.81,23.2476282]
[1729091059129,6.4574,154.86,154.82,0.12549]
[1729091059296,6.4578,154.85,154.82,20.0]
[1729091059688,6.4578,154.85,154.81,16.7882282]
[1729091059689,6.4582,154.84,154.83,0.12549]
[1729091059908,16.1412,154.89,154.83,0.12549]
[1729091060714,6.4579,154.85,154.82,0.12549]
[1729091060890,6.4579,154.85,154.82,20.12549]
[1729091061827,6.4575,154.86,154.82,20.12549]
[1729091062719,6.458,154.85,154.82,20.12549]
[1729091062921,6.458,154.85,154.82,0.12549]
[1729091063492,16.1412,154.89,154.81,20.6396282]
[1729091063721,6.4585,154.84,154.81,20.6396282]
[1729091064023,6.4579,154.85,154.82,0.12549]
[1729091064320,16.1412,154.89,154.82,0.12549]
[1729091064495,23.776884,154.91,154.84,0.12549]
[1729091064701,6.4574,154.87,154.84,0.12549]
[1729091065309,6.4574,154.87,154.83,0.12549]
[1729091065522,6.4581,154.85,154.83,0.12549]
[1729091065826,6.4582,154.84,154.81,20.6396282]
[1729091066207,6.4582,154.84,154.81,0.6396282]
[1729091066539,6.4585,154.84,154.81,0.6396282]
[1729091066700,6.4585,154.84,154.82,0.12549]
[1729091067713,6.4577,154.86,154.82,0.12549]
[1729091068627,6.457,154.87,154.82,6.58419]
[1729091068925,6.4574,154.86,154.82,0.12549]
[1729091069123,6.4582,154.85,154.82,0.12549]
[1729091069299,6.4583,154.84,154.82,0.12549]
[1729091069695,6.4586,154.83,154.82,0.12549]
[1729091070001,6.4591,154.82,154.81,0.6396282]
[1729091070202,6.4591,154.82,154.81,0.7651182]
[1729091070907,6.4591,154.82,154.81,0.6396282]
[1729091071306,6.4591,154.82,154.81,0.7651182]
[1729091072959,6.4591,154.82,154.71,16.1584]
[1729091072960,6.462,154.75,154.71,16.1584]
[1729091073133,6.462,154.75,154.7,28.8311]
[1729091073302,6.462,154.75,154.71,0.12549]
[1729091074222,6.462,154.75,154.7,6.464]
[1729091075304,6.462,154.75,154.71,0.12549]
[1729091075609,6.4627,154.74,154.71,0.12549]
[1729091075801,15.1931,154.77,154.65,23.0387282]
[1729091076009,6.4645,154.69,154.65,23.2711282]
[1729091076210,6.4645,154.69,154.66,0.12549]
[1729091077028,6.4645,154.69,154.65,16.8050282]
[1729091077464,6.4652,154.68,154.66,0.12549]
[1729091077731,16.1581,154.73,154.65,0.6396282]
[1729091077936,6.4657,154.66,154.65,0.6396282]
[1729091078318,6.4657,154.66,154.65,0.7651182]
[1729091078916,6.4657,154.66,154.65,0.6396282]
[1729091079526,16.1601,154.71,154.66,0.12549]
[1729091079739,6.4641,154.7,154.66,0.12549]
[1729091080117,31.3776,154.74,154.66,0.12549]
[1729091080736,6.4642,154.7,154.66,0.12549]
[1729091081630,6.4638,154.71,154.66,6.59119]
[1729091082014,6.4633,154.72,154.68,0.12549]
[1729091082216,6.4629,154.73,154.69,0.12549]
[1729091083328,6.4633,154.72,154.68,0.12549]
[1729091083637,6.4633,154.72,154.68,6.59039]
[1729091084517,6.4628,154.74,154.7,0.12549]
[1729091084723,22.85208902,154.77,154.7,0.12549]
[1729091084724,6.463,154.73,154.7,0.12549]
[1729091085237,6.463,154.73,154.69,0.12549]
[1729091085453,6.463,154.73,154.69,6.58989]
[1729091085823,6.4625,154.74,154.69,6.58989]
[1729091086356,6.4629,154.73,154.69,6.58989]
[1729091086650,6.4636,154.72,154.68,0.12549]
[1729091086944,6.4636,154.72,154.68,6.59039]
[1729091088124,22.85208902,154.77,154.68,6.59039]
[1729091088326,6.4629,154.73,154.68,6.59039]
[1729091089232,6.4625,154.74,154.7,0.12549]
[1729091090523,6.4642,154.7,154.66,6.4655]
[1729091091038,6.4642,154.7,154.66,0.12549]
[1729091093050,6.4646,154.69,154.66,0.12549]
[1729091095162,23.876884,154.74,154.66,0.12549]
[1729091095337,6.4653,154.67,154.66,0.12549]
[1729091096454,6.4649,154.69,154.66,0.12549]
[1729091096965,6.465,154.68,154.66,0.12549]
[1729091098752,16.1596,154.71,154.66,0.12549]
[1729091099051,6.4653,154.67,154.66,0.12549]
[1729091099761,32.6741,154.71,154.65,0.6396282]
[1729091099762,6.4657,154.66,154.65,0.6396282]
[1729091100944,6.4657,154.66,154.65,0.7651182]
[1729091102154,6.4657,154.66,154.65,0.6396282]
[1729091102762,6.4688,154.59,154.56,22.0849]
[1729091103053,6.4688,154.59,154.57,0.12549]
[1729091103645,16.1647,154.66,154.56,22.0849]
[1729091103841,6.4671,154.63,154.57,20.12549]
[1729091104039,6.4671,154.63,154.57,26.59469]
[1729091104238,6.4671,154.63,154.57,20.12549]
[1729091104865,6.4671,154.63,154.59,0.12549]
[1729091105159,16.1669,154.64,154.59,0.12549]
[1729091105342,32.4249,154.68,154.52,22.1079]
[1729091105343,6.4699,154.57,154.52,22.1079]
[1729091105660,16.1714,154.6,154.52,6.546]
[1729091105865,6.4709,154.54,154.49,0.6396282]
[1729091106156,16.1714,154.6,154.49,0.6396282]
[1729091106664,6.4712,154.53,154.49,0.6396282]
[1729091106852,6.4709,154.54,154.5,0.12549]
[1729091107970,6.4713,154.53,154.5,0.12549]
[1729091108838,6.4709,154.54,154.5,0.12549]
[1729091109159,16.1733,154.58,154.5,0.12549]
[1729091109363,6.4713,154.53,154.5,0.12549]
[1729091109940,16.1733,154.58,154.5,0.12549]
[1729091110866,6.4716,154.53,154.5,0.12549]
[1729091111548,48.1644,154.6,154.49,20.6396282]
[1729091111549,6.4724,154.5,154.49,20.6396282]
[1729091111749,6.4724,154.5,154.49,0.6396282]
[1729091112067,6.4724,154.5,154.49,0.7651182]
[1729091112273,6.4724,154.5,154.49,0.6396282]
[1729091113160,6.4724,154.5,154.49,0.7651182]
[1729091115462,6.4724,154.5,154.49,0.6396282]
[1729091117767,6.4724,154.5,154.49,0.7651182]
[1729091121644,6.4724,154.5,154.49,0.6396282]
[1729091122353,6.4724,154.5,154.49,0.7651182]
[1729091122962,26.4724,154.5,154.49,0.7651182]
[1729091123273,6.476,154.42,154.4,20.0]
[1729091123482,6.4755,154.43,154.41,0.12549]
[1729091123773,6.4751,154.44,154.41,0.12549]
[1729091124547,6.4739,154.47,154.43,0.12549]
[1729091124750,16.1829,154.49,154.43,0.12549]
[1729091125052,6.4747,154.45,154.42,0.12549]
[1729091125959,16.1829,154.49,154.42,0.12549]
[1729091126164,6.4751,154.44,154.42,0.12549]
[1729091126553,6.4758,154.43,154.39,21.1614]
[1729091126866,6.4758,154.43,154.4,0.12549]
[1729091128368,6.4762,154.41,154.4,0.12549]
[1729091128764,6.4762,154.41,154.38,0.12549]
[1729091128975,6.4763,154.41,154.38,0.12549]
[1729091129880,6.4759,154.42,154.38,0.12549]
[1729091130980,16.1872,154.45,154.37,16.1944]
[1729091131290,6.4758,154.42,154.39,0.12549]
[1729091131989,16.1872,154.45,154.37,16.1944]
[1729091132168,6.477,154.4,154.36,20.0]
[1729091132372,6.477,154.4,154.37,0.12549]
[1729091133971,6.4765,154.41,154.37,0.12549]
[1729091134173,6.4766,154.4,154.37,0.12549]
[1729091135073,6.4772,154.39,154.37,0.12549]
[1729091135278,6.4778,154.38,154.34,16.8372282]
[1729091135503,6.4779,154.37,154.35,0.12549]
[1729091135970,6.4772,154.39,154.35,0.12549]
[1729091136474,6.4772,154.39,154.34,23.3163282]
[1729091136995,6.69377065,154.44,154.38,0.12549]
[1729091136996,6.4763,154.41,154.38,0.12549]
[1729091137296,6.4774,154.39,154.34,7.1186282]
[1729091137470,6.4774,154.39,154.36,0.12549]
[1729091137675,6.4767,154.4,154.36,6.60359]
[1729091137869,6.4767,154.4,154.36,0.12549]
[1729091138366,6.4771,154.39,154.35,6.4787]
[1729091138568,6.69377065,154.44,154.34,0.6396282]
[1729091138800,6.4759,154.42,154.35,16.32239]
[1729091138984,6.4759,154.42,154.39,0.12549]
[1729091139373,32.3079,154.46,154.39,0.12549]
[1729091139574,6.4757,154.43,154.39,0.12549]
[1729091140466,6.4759,154.42,154.39,0.12549]
[1729091141995,32.3079,154.46,154.38,6.60279]
[1729091142295,16.1881,154.44,154.38,0.12549]
[1729091142481,16.1881,154.44,154.35,6.4787]
[1729091142482,6.4771,154.39,154.35,6.4787]
[1729091142678,6.4771,154.39,154.36,0.12549]
[1729091143372,6.4768,154.4,154.36,0.12549]
[1729091143784,6.4768,154.4,154.37,0.12549]
[1729091144407,16.1218,154.46,154.35,0.12549]
[1729091144596,6.4763,154.41,154.38,0.12549]
[1729091145397,59.963784,154.45,154.37,0.12549]
[1729091145698,6.4769,154.4,154.37,0.12549]
[1729091146302,59.963784,154.45,154.34,0.6396282]
[1729091146303,43.776884,154.45,154.34,0.6396282]
[1729091146473,6.4779,154.37,154.34,0.6396282]
[1729091147179,16.191,154.41,154.35,0.12549]
[1729091147383,6.4776,154.38,154.35,0.12549]
[1729091147794,16.191,154.41,154.35,0.12549]
[1729091148021,6.4779,154.37,154.35,0.12549]
[1729091151388,6.4779,154.37,154.35,0.12549]
[1729091152187,39.2603532,154.44,154.35,0.12549]
[1729091152188,22.8725532,154.44,154.35,0.12549]
[1729091152389,22.8725532,154.44,154.35,16.1967]
[1729091152591,6.4772,154.39,154.36,0.12549]
[1729091152909,6.4779,154.37,154.36,0.12549]
[1729091153290,6.4779,154.37,154.35,0.12549]
[1729091153485,6.4776,154.38,154.35,0.12549]
[1729091154808,16.1898,154.42,154.35,0.12549]
[1729091155306,6.478,154.37,154.35,0.12549]
[1729091156915,6.4776,154.38,154.35,0.12549]
[1729091157288,6.4773,154.39,154.35,6.60399]
[1729091158809,6.4775,154.38,154.35,0.12549]
[1729091159914,6.4774,154.39,154.35,6.60419]
[1729091160806,6.4763,154.41,154.37,6.60299]
[1729091161289,16.1887,154.43,154.34,0.6396282]
[1729091161493,6.4782,154.37,154.34,0.6396282]
[1729091162519,6.4782,154.37,154.35,0.12549]
[1729091166727,6.4783,154.36,154.35,0.12549]
[1729091166912,15.0253,154.39,154.35,0.12549]
[1729091167221,6.4778,154.38,154.35,0.12549]
[1729091167732,15.9991,154.43,154.35,6.60389]
[1729091167904,6.4769,154.4,154.34,16.11373809]
[1729091168092,6.478,154.37,154.34,0.6396282]
[1729091168497,15.9991,154.43,154.34,0.6396282]
[1729091168715,4.71376081,154.42,154.34,7.1187282]
[1729091168917,0.1,154.42,154.34,0.6396282]
[1729091169319,6.4784,154.36,154.35,0.12549]
[1729091170092,16.0991,154.43,154.35,0.12549]
[1729091170093,6.4775,154.38,154.35,0.12549]
[1729091170316,6.4768,154.4,154.35,6.60379]
[1729091170893,6.4772,154.39,154.35,6.60379]
[1729091171816,6.4778,154.38,154.35,0.12549]
[1729091172123,6.4783,154.36,154.35,0.12549]
[1729091173118,6.4783,154.36,154.34,0.6396282]
[1729091173321,6.4787,154.35,154.34,0.6396282]
[1729091174928,6.4787,154.35,154.34,0.7651182]
[1729091175230,6.4786,154.36,154.35,0.12549]
[1729091175412,6.4782,154.37,154.35,0.12549]
[1729091176235,6.4774,154.39,154.35,6.60399]
[1729091176437,6.4767,154.4,154.35,0.12549]
[1729091176613,6.4767,154.4,154.37,0.12549]
[1729091177303,6.4772,154.39,154.35,6.60419]
[1729091177812,16.1914,154.41,154.35,0.12549]
[1729091178010,6.4779,154.37,154.35,0.12549]
[1729091178209,6.4783,154.36,154.35,0.12549]
[1729091178632,6.4787,154.35,154.34,0.6396282]
[1729091178832,6.4783,154.36,154.34,0.6396282]
[1729091179415,6.4783,154.36,154.35,0.12549]
[1729091182513,6.478,154.37,154.35,0.12549]
[1729091183136,6.4776,154.38,154.35,0.12549]
[1729091183542,16.192,154.4,154.35,0.12549]
[1729091183715,6.4783,154.36,154.35,0.12549]
[1729091185517,6.4787,154.35,154.34,0.6396282]
[1729091186017,6.4787,154.35,154.34,0.7651182]
[1729091186215,6.4787,154.35,154.23,55.4434]
[1729091186216,20.92107393,154.35,154.23,55.4434]
[1729091186420,6.4812,154.3,154.25,6.4829]
[1729091186621,6.4817,154.29,154.24,22.6911]
[1729091186841,6.4818,154.28,154.24,22.6911]
[1729091187360,16.1996,154.33,154.26,6.4825]
[1729091187644,16.1996,154.33,154.27,0.12549]
[1729091188058,6.4803,154.32,154.29,0.12549]
[1729091188346,6.4796,154.33,154.29,6.60649]
[1729091188520,31.6216,154.36,154.29,6.60649]
[1729091188720,6.4793,154.34,154.29,6.60649]
[1729091189240,15.4253,154.36,154.29,0.12549]
[1729091189481,6.4813,154.29,154.24,6.4831]
[1729091189749,6.4838,154.23,154.19,16.2133]
[1729091189964,15.4031,154.29,154.18,0.6396282]
[1729091190136,6.4828,154.26,154.18,0.6396282]
[1729091190333,15.4031,154.29,154.2,16.2118]
[1729091190537,6.4825,154.26,154.22,6.4841]
[1729091190930,6.4825,154.26,154.23,0.12549]
[1729091191132,6.4821,154.28,154.23,0.12549]
[1729091191378,6.4821,154.28,154.22,16.2099]
[1729091191536,6.4821,154.28,154.23,0.12549]
[1729091191733,6.4821,154.28,154.24,6.4833]
[1729091191962,0.1,154.33,154.25,0.12549]
[1729091191963,6.4809,154.3,154.25,0.12549]
[1729091192133,15.251,154.33,154.25,0.12549]
[1729091192134,16.201,154.32,154.25,0.12549]
[1729091192333,6.4828,154.26,154.19,16.2134]
[1729091193360,6.4828,154.26,154.22,0.12549]
[1729091193742,6.4822,154.27,154.22,6.60969]
[1729091194256,6.4831,154.25,154.2,6.61039]
[1729091194448,6.4831,154.25,154.22,0.12549]
[1729091194966,31.4503,154.33,154.24,0.12549]
[1729091195173,31.4503,154.33,154.18,20.6396282]
[1729091195344,6.4817,154.28,154.25,0.12549]
[1729091195546,6.4814,154.29,154.25,0.12549]
[1729091195739,31.4503,154.33,154.23,16.2088]
[1729091195941,6.482,154.28,154.23,22.6925]
[1729091196242,6.482,154.28,154.24,0.12549]
[1729091198464,6.4805,154.31,154.28,0.12549]
[1729091198848,6.4811,154.3,154.28,0.12549]
[1729091199048,6.4805,154.31,154.26,6.60779]
[1729091199267,15.251,154.33,154.26,6.60779]
[1729091199268,15.251,154.33,154.26,0.12549]
[1729091199569,6.48,154.32,154.29,0.12549]
[1729091200254,22.89110747,154.36,154.28,0.12549]
[1729091200459,6.4796,154.33,154.3,0.12549]
[1729091200647,6.69480747,154.36,154.3,6.60619]
[1729091200843,6.4792,154.34,154.3,6.60619]
[1729091201878,16.6431,154.37,154.32,0.12549]
[1729091202067,6.4776,154.38,154.34,0.12549]
[1729091202869,6.4771,154.39,154.35,0.12549]
[1729091203366,6.4771,154.39,154.32,16.1999]
[1729091203367,6.4775,154.38,154.33,6.60479]
[1729091203772,6.4783,154.36,154.33,0.12549]
[1729091204445,15.9069,154.41,154.33,0.12549]
[1729091204670,6.478,154.37,154.33,6.60509]
[1729091206065,6.4776,154.38,154.33,6.60509]
[1729091206453,6.4781,154.37,154.33,6.60509]
[1729091206662,15.9069,154.41,154.33,0.12549]
[1729091206960,6.4784,154.36,154.33,0.12549]
[1729091207561,6.4775,154.38,154.33,6.60469]
[1729091207770,15.9069,154.41,154.33,0.12549]